fUST/lending_fUST_20250912
["ID","MTS","AMOUNT","RATE_DAILY","PERIOD"]
[384906043,1757625040505,-480.0,0.00014072,2]
[384906045,1757625040514,-480.0,0.00014072,2]
[384906047,1757625040523,-480.0,0.00014072,2]
[384906048,1757625040532,-480.0,0.00014072,2]
[384906050,1757625040541,-480.0,0.00014072,2]
[384906051,1757625040550,-480.0,0.00014072,2]
[384906053,1757625040560,-480.0,0.00014072,2]
[384906055,1757625040569,-480.0,0.00014072,2]
[384906056,1757625040578,-480.0,0.00014072,2]
[384906058,1757625040587,-480.0,0.00014072,2]
[384906060,1757625040596,-480.0,0.00014072,2]
[384906061,1757625040605,-480.0,0.00014072,2]
[384906063,1757625040614,-480.0,0.00014072,2]
[384906064,1757625040623,-480.0,0.00014072,2]
[384906066,1757625040633,-480.0,0.00014072,2]
[384906068,1757625040642,-480.0,0.00014072,2]
[384906069,1757625040651,-239.37,0.00014072,2]
[384906071,1757625040660,-687.45,0.00014072,2]
[384906072,1757625040669,-480.0,0.00014072,2]
[384906074,1757625040677,-480.0,0.00014072,2]
[384906076,1757625040686,-480.0,0.00014072,2]
[384906077,1757625040695,-480.0,0.00014072,2]
[384906079,1757625040705,-480.0,0.00014072,2]
[384906081,1757625040714,-480.0,0.00014072,2]
[384906082,1757625040723,-3326.37,0.00014072,2]
[384906084,1757625040732,-480.0,0.00014072,2]
[384906085,1757625040741,-480.0,0.00014072,2]
[384906087,1757625040750,-480.0,0.00014072,2]
[384906089,1757625040758,-480.0,0.00014072,2]
[384906090,1757625040767,-480.0,0.00014072,2]
[384906092,1757625040776,-480.0,0.00014072,2]
[384906094,1757625040786,-480.0,0.00014072,2]
[384906095,1757625040795,-480.0,0.00014072,2]
[384906097,1757625040805,-480.0,0.00014072,2]
[384906098,1757625040815,-937.75,0.00014072,2]
[384906100,1757625040824,-480.0,0.00014072,2]
[384906102,1757625040833,-488.17665519,0.00014072,2]
[384906103,1757625040842,-480.0,0.00014072,2]
[384906105,1757625040851,-480.0,0.00014072,2]
[384906107,1757625040860,-480.0,0.00014072,2]
[384906108,1757625040869,-1157.92,0.00014072,2]
[384906110,1757625040878,-480.0,0.00014072,2]
[384906111,1757625040888,-480.0,0.00014072,2]
[384906113,1757625040897,-480.0,0.00014072,2]
[384906115,1757625040906,-480.0,0.00014072,2]
[384906116,1757625040915,-480.0,0.00014072,2]
[384906118,1757625040925,-573.65301586,0.00014072,2]
[384906120,1757625040934,-490.91,0.00014072,2]
[384906121,1757625040943,-480.0,0.00014072,2]
[384906123,1757625040953,-979.73,0.00014072,2]
[384906124,1757625040962,-480.0,0.00014072,2]
[384906126,1757625040971,-8625.72,0.00014072,2]
[384906128,1757625040980,-480.0,0.00014072,2]
[384906130,1757625040989,-480.0,0.00014072,2]
[384906132,1757625040997,-190.86631507,0.00014072,2]
[384906134,1757625041007,-480.0,0.00014072,2]
[384906136,1757625041016,-480.0,0.00014072,2]
[384906138,1757625041025,-480.0,0.00014072,2]
[384906139,1757625041034,-480.0,0.00014072,2]
[384906141,1757625041044,-480.0,0.00014072,2]
[384906143,1757625041053,-480.0,0.00014172,2]
[384906145,1757625041063,-480.0,0.00014172,2]
[384906147,1757625041072,-480.0,0.00014172,2]
[384906149,1757625041082,-480.0,0.00014172,2]
[384906150,1757625041091,-480.0,0.00014172,2]
[384906151,1757625041105,-480.0,0.00014172,2]
[384906152,1757625041114,-480.0,0.00014172,2]
[384906153,1757625041123,-480.0,0.00014172,2]
[384906154,1757625041131,-480.0,0.00014172,2]
[384906155,1757625041140,-480.0,0.00014172,2]
[384906156,1757625041149,-480.0,0.00014172,2]
[384906157,1757625041157,-480.0,0.00014172,2]
[384906158,1757625041166,-480.0,0.00014172,2]
[384906159,1757625041176,-486.74,0.00014172,2]
[384906160,1757625041185,-480.0,0.00014172,2]
[384906161,1757625041195,-480.0,0.00014172,2]
[384906162,1757625041297,-570.12,0.00014172,2]
[384906163,1757625041305,-480.0,0.00014172,2]
[384906164,1757625041314,-538.62,0.00014172,2]
[384906165,1757625041323,-480.0,0.00014172,2]
[384906166,1757625041333,-644.27,0.00014172,2]
[384906167,1757625041341,-512.62,0.00014172,2]
[384906168,1757625041350,-480.0,0.00014172,2]
[384906169,1757625041359,-597.52,0.00014172,2]
[384906170,1757625041368,-480.0,0.00014172,2]
[384906171,1757625041377,-300.0,0.00014175,2]
[384906172,1757625041385,-300.0,0.00014175,2]
[384906173,1757625041395,-300.0,0.00014175,2]
[384906174,1757625041404,-300.0,0.00014175,2]
[384906175,1757625041413,-300.0,0.00014175,2]
[384906176,1757625041422,-300.0,0.00014175,2]
[384906177,1757625041431,-300.0,0.00014175,2]
[384906178,1757625041439,-300.0,0.00014175,2]
[384906179,1757625041448,-300.0,0.00014175,2]
[384906180,1757625041457,-300.0,0.00014175,2]
[384906181,1757625041467,-300.0,0.00014175,2]
[384906183,1757625041476,-300.0,0.00014175,2]
[384906184,1757625041485,-300.0,0.00014175,2]
[384906185,1757625041493,-300.0,0.00014175,2]
[384906186,1757625041502,-300.0,0.00014175,2]
[384906188,1757625041511,-217.85943392,0.00014182,2]
[384906190,1757625041520,-480.0,0.00014271,2]
[384906192,1757625041529,-480.0,0.00014271,2]
[384906194,1757625041539,-480.0,0.00014271,2]
[384906196,1757625041548,-480.0,0.00014271,2]
[384906198,1757625041557,-480.0,0.00014271,2]
[384906200,1757625041565,-480.0,0.00014271,2]
[384906202,1757625041574,-480.0,0.00014271,2]
[384906204,1757625041583,-480.0,0.00014271,2]
[384906206,1757625041592,-480.0,0.00014271,2]
[384906208,1757625041601,-480.0,0.00014271,2]
[384906210,1757625041610,-480.0,0.00014271,2]
[384906212,1757625041619,-480.0,0.00014271,2]
[384906214,1757625041627,-480.0,0.00014271,2]
[384906215,1757625041638,-480.0,0.00014271,2]
[384906217,1757625041648,-480.0,0.00014271,2]
[384906219,1757625041657,-166.3,0.00014271,2]
[384906221,1757625041666,-480.0,0.00014271,2]
[384906223,1757625041675,-480.0,0.00014271,2]
[384906225,1757625041684,-480.0,0.00014271,2]
[384906227,1757625041693,-480.0,0.00014271,2]
[384906229,1757625041704,-480.0,0.00014271,2]
[384906232,1757625041713,-480.0,0.00014271,2]
[384906233,1757625041722,-480.0,0.00014271,2]
[384906235,1757625041731,-480.0,0.00014271,2]
[384906237,1757625041740,-480.0,0.00014271,2]
[384906239,1757625041749,-480.0,0.00014271,2]
[384906241,1757625041758,-480.0,0.00014271,2]
[384906243,1757625041767,-480.0,0.00014271,2]
[384906246,1757625041776,-480.0,0.00014271,2]
[384906248,1757625041785,-480.0,0.00014271,2]
[384906250,1757625041794,-480.0,0.00014271,2]
[384906252,1757625041803,-455.57201186,0.00014271,2]
[384906253,1757625041812,-480.0,0.00014271,2]
[384906255,1757625041821,-480.0,0.00014271,2]
[384906257,1757625041830,-480.0,0.00014271,2]
[384906259,1757625041839,-480.0,0.00014271,2]
[384906261,1757625041848,-480.0,0.00014271,2]
[384906263,1757625041858,-480.0,0.00014271,2]
[384906265,1757625041867,-480.0,0.00014273,2]
[384906267,1757625041875,-430.14399858,0.00014273,2]
[384906269,1757625041884,-480.0,0.00014273,2]
[384906271,1757625041894,-529.25793785,0.00014273,2]
[384906273,1757625041903,-480.0,0.00014273,2]
[384906275,1757625041912,-600.0,0.00014276,2]
[384906277,1757625041921,-2241.53,0.00014345,2]
[384906279,1757625041931,-865.88,0.00014345,2]
[384906281,1757625041940,-480.0,0.00014345,2]
[384906283,1757625041949,-480.0,0.00014345,2]
[384906285,1757625041959,-480.0,0.00014345,2]
[384906287,1757625041968,-480.0,0.00014345,2]
[384906289,1757625041977,-658.19,0.00014345,2]
[384906291,1757625041986,-1031.8,0.00014345,2]
[384906293,1757625041995,-928.67,0.00014345,2]
[384906295,1757625042004,-480.0,0.00014345,2]
[384906297,1757625042013,-480.0,0.00014345,2]
[384906299,1757625042022,-480.0,0.00014345,2]
[384906301,1757625042030,-480.0,0.00014345,2]
[384906303,1757625042039,-480.0,0.00014345,2]
[384906305,1757625042048,-480.0,0.00014345,2]
[384906307,1757625042057,-380.32754381,0.00014345,2]
[384906309,1757625042066,-924.32,0.00014345,2]
[384906311,1757625042076,-480.0,0.00014345,2]
[384906313,1757625042085,-1704.95,0.00014345,2]
[384906315,1757625042096,-480.0,0.00014345,2]
[384906317,1757625042107,-480.0,0.00014345,2]
[384906319,1757625042116,-480.0,0.00014345,2]
[384906321,1757625042126,-480.0,0.00014345,2]
[384906323,1757625042135,-244.75638401,0.00014345,2]
[384906325,1757625042145,-480.0,0.00014346,2]
[384906327,1757625042154,-480.0,0.00014346,2]
[384906329,1757625042163,-480.0,0.00014346,2]
[384906331,1757625042173,-555.13,0.00014346,2]
[384906333,1757625042182,-480.0,0.00014346,2]
[384906335,1757625042192,-480.0,0.00014346,2]
[384906337,1757625042201,-480.0,0.00014346,2]
[384906339,1757625042210,-480.0,0.00014346,2]
[384906341,1757625042219,-480.0,0.00014346,2]
[384906343,1757625042228,-480.0,0.00014346,2]
[384906345,1757625042237,-480.0,0.00014346,2]
[384906347,1757625042246,-480.0,0.00014346,2]
[384906349,1757625042255,-480.0,0.00014346,2]
[384906351,1757625042264,-480.0,0.00014346,2]
[384906353,1757625042273,-480.0,0.00014346,2]
[384906355,1757625042283,-480.0,0.00014346,2]
[384906357,1757625042292,-687.45,0.00014346,2]
[384906359,1757625042301,-480.0,0.00014346,2]
[384906361,1757625042310,-480.0,0.00014346,2]
[384906363,1757625042319,-480.0,0.00014346,2]
[384906365,1757625042328,-480.0,0.00014346,2]
[384906367,1757625042337,-480.0,0.00014346,2]
[384906369,1757625042346,-3326.37,0.00014346,2]
[384906371,1757625042355,-480.0,0.00014346,2]
[384906373,1757625042364,-480.0,0.00014346,2]
[384906376,1757625042373,-480.0,0.00014346,2]
[384906379,1757625042382,-480.0,0.00014346,2]
[384906382,1757625042391,-480.0,0.00014346,2]
[384906384,1757625042399,-480.0,0.00014346,2]
[384906386,1757625042408,-480.0,0.00014346,2]
[384906388,1757625042417,-937.75,0.00014346,2]
[384906390,1757625042427,-480.0,0.00014346,2]
[384906392,1757625042436,-409.22,0.00014346,2]
[384906394,1757625042444,-480.0,0.00014346,2]
[384906396,1757625042453,-480.0,0.00014346,2]
[384906398,1757625042462,-1157.92,0.00014346,2]
[384906400,1757625042471,-480.0,0.00014346,2]
[384906402,1757625042479,-480.0,0.00014346,2]
[384906404,1757625042488,-480.0,0.00014346,2]
[384906406,1757625042497,-480.0,0.00014346,2]
[384906408,1757625042506,-490.91,0.00014346,2]
[384906410,1757625042515,-480.0,0.00014346,2]
[384906412,1757625042524,-979.73,0.00014346,2]
[384906414,1757625042532,-480.0,0.00014346,2]
[384906416,1757625042541,-8625.72,0.00014346,2]
[384906418,1757625042550,-480.0,0.00014346,2]
[384906420,1757625042559,-480.0,0.00014346,2]
[384906422,1757625042568,-480.0,0.00014346,2]
[384906424,1757625042578,-480.0,0.00014346,2]
[384906426,1757625042586,-480.0,0.00014346,2]
[384906428,1757625042595,-504.09211214,0.00014357,2]
[384906430,1757625042604,-307.6574513,0.00014357,2]
[384906431,1757625042613,-500.0,0.00014357,2]
[384906433,1757625042622,-500.0,0.00014395,2]
[384906435,1757625042632,-500.0,0.00014403,2]
[384906437,1757625042641,-500.0,0.00014439,2]
[384906439,1757625042650,-366.93332035,0.00014439,2]
[384906441,1757625042659,-500.0,0.00014439,2]
[384906443,1757625042668,-500.0,0.00014439,2]
[384906445,1757625042677,-500.0,0.00014441,2]
[384906447,1757625042687,-480.0,0.00014446,2]
[384906450,1757625042696,-480.0,0.00014446,2]
[384906452,1757625042706,-480.0,0.00014446,2]
[384906453,1757625042715,-480.0,0.00014446,2]
[384906455,1757625042723,-480.0,0.00014446,2]
[384906457,1757625042732,-480.0,0.00014446,2]
[384906459,1757625042741,-480.0,0.00014446,2]
[384906461,1757625042750,-480.0,0.00014446,2]
[384906463,1757625042759,-480.0,0.00014446,2]
[384906465,1757625042769,-480.0,0.00014446,2]
[384906467,1757625042778,-480.0,0.00014446,2]
[384906469,1757625042787,-480.0,0.00014446,2]
[384906471,1757625042796,-480.0,0.00014446,2]
[384906473,1757625042805,-486.74,0.00014446,2]
[384906474,1757625042814,-480.0,0.00014446,2]
[384906476,1757625042823,-538.62,0.00014446,2]
[384906478,1757625042833,-311.24267845,0.00014446,2]
[384906480,1757625042843,-644.27,0.00014446,2]
[384906482,1757625042853,-480.0,0.00014446,2]
[384906484,1757625042862,-597.52,0.00014446,2]
[384906486,1757625042871,-480.0,0.00014446,2]
[384906488,1757625042880,-500.0,0.00014459,2]
[384906490,1757625042889,-160.0,0.00014481,2]
[384906492,1757625042898,-217.69300629,0.00014482,2]
[384906494,1757625042907,-160.0,0.00014482,2]
[384906496,1757625042916,-233.10680167,0.00014482,2]
[384906498,1757625042925,-846.96613202,0.00014482,2]
[384906500,1757625042934,-160.0,0.00014482,2]
[384906502,1757625042943,-480.0,0.00014545,2]
[384906503,1757625042952,-480.0,0.00014545,2]
[384906505,1757625042962,-480.0,0.00014545,2]
[384906507,1757625042971,-480.0,0.00014545,2]
[384906509,1757625042980,-480.0,0.00014545,2]
[384906511,1757625042989,-480.0,0.00014545,2]
[384906513,1757625042998,-480.0,0.00014545,2]
[384906515,1757625043007,-480.0,0.00014545,2]
[384906517,1757625043016,-480.0,0.00014545,2]
[384906519,1757625043025,-480.0,0.00014545,2]
[384906521,1757625043034,-480.0,0.00014545,2]
[384906523,1757625043043,-480.0,0.00014545,2]
[384906525,1757625043052,-480.0,0.00014545,2]
[384906527,1757625043062,-480.0,0.00014545,2]
[384906529,1757625043071,-514.35,0.00014545,2]
[384906531,1757625043079,-228.8854151,0.00014545,2]
[384906533,1757625043089,-480.0,0.00014545,2]
[384906535,1757625043100,-480.0,0.00014545,2]
[384906537,1757625043109,-480.0,0.00014545,2]
[384906539,1757625043118,-480.0,0.00014547,2]
[384906541,1757625043127,-480.0,0.00014547,2]
[384906543,1757625043139,-500.0,0.00014592,2]
[384906545,1757625043147,-501.24456951,0.00014618,2]
[384906547,1757625043156,-2241.53,0.00014619,2]
[384906549,1757625043165,-865.88,0.00014619,2]
[384906551,1757625043176,-480.0,0.00014619,2]
[384906553,1757625043186,-480.0,0.00014619,2]
[384906555,1757625043195,-480.0,0.00014619,2]
[384906556,1757625043204,-480.0,0.00014619,2]
[384906558,1757625043212,-658.19,0.00014619,2]
[384906560,1757625043222,-1031.8,0.00014619,2]
[384906562,1757625043230,-928.67,0.00014619,2]
[384906564,1757625043240,-480.0,0.00014619,2]
[384906566,1757625043249,-480.0,0.00014619,2]
[384906568,1757625043258,-480.0,0.00014619,2]
[384906570,1757625043267,-480.0,0.00014619,2]
[384906572,1757625043276,-480.0,0.00014619,2]
[384906574,1757625043285,-480.0,0.00014619,2]
[384906576,1757625043295,-924.32,0.00014619,2]
[384906578,1757625043304,-480.0,0.00014619,2]
[384906580,1757625043314,-1704.95,0.00014619,2]
[384906582,1757625043323,-480.0,0.00014619,2]
[384906584,1757625043332,-480.0,0.00014619,2]
[384906586,1757625043341,-480.0,0.00014619,2]
[384906588,1757625043350,-480.0,0.00014619,2]
[384906590,1757625043358,-480.0,0.0001462,2]
[384906592,1757625043367,-480.0,0.0001462,2]
[384906594,1757625043377,-480.0,0.0001462,2]
[384906596,1757625043386,-480.0,0.0001462,2]
[384906598,1757625043395,-480.0,0.0001462,2]
[384906600,1757625043404,-480.0,0.0001462,2]
[384906602,1757625043413,-409.39498672,0.0001462,2]
[384906604,1757625043422,-161.46713333,0.0001462,2]
[384906606,1757625043431,-480.0,0.0001462,2]
[384906608,1757625043440,-480.0,0.0001462,2]
[384906619,1757625043536,-480.0,0.0001462,2]
[384906621,1757625043546,-687.45,0.0001462,2]
[384906623,1757625043555,-480.0,0.0001462,2]
[384906625,1757625043564,-480.0,0.0001462,2]
[384906627,1757625043573,-480.0,0.0001462,2]
[384906629,1757625043583,-480.0,0.0001462,2]
[384906631,1757625043592,-3326.37,0.0001462,2]
[384906633,1757625043601,-480.0,0.0001462,2]
[384906635,1757625043610,-480.0,0.0001462,2]
[384906636,1757625043619,-480.0,0.0001462,2]
[384906638,1757625043628,-480.0,0.0001462,2]
[384906640,1757625043638,-480.0,0.0001462,2]
[384906642,1757625043648,-480.0,0.0001462,2]
[384906645,1757625043657,-937.75,0.0001462,2]
[384906647,1757625043666,-480.0,0.0001462,2]
[384906648,1757625043676,-480.0,0.0001462,2]
[384906651,1757625043686,-1157.92,0.0001462,2]
[384906652,1757625043697,-480.0,0.0001462,2]
[384906654,1757625043706,-480.0,0.0001462,2]
[384906656,1757625043717,-480.0,0.0001462,2]
[384906658,1757625043726,-480.0,0.0001462,2]
[384906660,1757625043735,-490.91,0.0001462,2]
[384906662,1757625043746,-539.88531689,0.0001462,2]
[384906664,1757625043754,-979.73,0.0001462,2]
[384906666,1757625043763,-480.0,0.0001462,2]
[384906668,1757625043780,-8625.72,0.0001462,2]
[384906670,1757625043796,-480.0,0.0001462,2]
[384906672,1757625043807,-480.0,0.0001462,2]
[384906675,1757625043816,-480.0,0.0001462,2]
[384906676,1757625043826,-480.0,0.0001462,2]
[384906678,1757625043835,-480.0,0.0001462,2]
[384906680,1757625043844,-500.0,0.00014623,2]
[384906682,1757625043853,-500.0,0.00014623,2]
[384906684,1757625043862,-500.0,0.00014623,2]
[384906686,1757625043872,-500.0,0.00014623,2]
[384906688,1757625043881,-480.0,0.0001472,2]
[384906690,1757625043890,-480.0,0.0001472,2]
[384906692,1757625043900,-480.0,0.0001472,2]
[384906694,1757625043909,-480.0,0.0001472,2]
[384906696,1757625043918,-480.0,0.0001472,2]
[384906698,1757625043927,-480.0,0.0001472,2]
[384906700,1757625043937,-480.0,0.0001472,2]
[384906702,1757625043946,-480.0,0.0001472,2]
[384906704,1757625043956,-480.0,0.0001472,2]
[384906706,1757625043965,-581.36,0.0001472,2]
[384906708,1757625043975,-403.48,0.0001472,2]
[384906710,1757625043984,-486.74,0.0001472,2]
[384906713,1757625043994,-480.0,0.0001472,2]
[384906714,1757625044003,-538.62,0.0001472,2]
[384906716,1757625044012,-644.27,0.0001472,2]
[384906718,1757625044021,-480.0,0.0001472,2]
[384906720,1757625044030,-597.52,0.0001472,2]
[384906722,1757625044039,-480.0,0.0001472,2]
[384906724,1757625044048,-500.0,0.00014753,2]
[384906726,1757625044057,-480.0,0.00014819,2]
[384906728,1757625044066,-480.0,0.00014819,2]
[384906730,1757625044075,-480.0,0.00014819,2]
[384906732,1757625044084,-350.36539022,0.00014819,2]
[384906734,1757625044094,-480.0,0.00014821,2]
[384906736,1757625044106,-2241.53,0.00014893,2]
[384906738,1757625044115,-865.88,0.00014893,2]
[384906740,1757625044124,-480.0,0.00014893,2]
[384906742,1757625044136,-480.0,0.00014893,2]
[384906744,1757625044146,-480.0,0.00014893,2]
[384906746,1757625044155,-480.0,0.00014893,2]
[384906748,1757625044164,-658.19,0.00014893,2]
[384906750,1757625044175,-1031.8,0.00014893,2]
[384906752,1757625044184,-928.67,0.00014893,2]
[384906754,1757625044193,-480.0,0.00014893,2]
[384906756,1757625044202,-575.16925455,0.00014893,2]
[384906758,1757625044211,-480.0,0.00014893,2]
[384906760,1757625044219,-480.0,0.00014893,2]
[384906762,1757625044228,-480.0,0.00014893,2]
[384906764,1757625044238,-480.0,0.00014893,2]
[384906766,1757625044247,-924.32,0.00014893,2]
[384906768,1757625044256,-480.0,0.00014893,2]
[384906770,1757625044265,-1704.95,0.00014893,2]
[384906772,1757625044274,-480.0,0.00014893,2]
[384906773,1757625044284,-480.0,0.00014893,2]
[384906775,1757625044293,-325.18912137,0.00014893,2]
[384906777,1757625044302,-480.0,0.00014893,2]
[384906779,1757625044311,-480.0,0.00014894,2]
[384906781,1757625044321,-458.88,0.00014894,2]
[384906783,1757625044330,-440.32,0.00014894,2]
[384906785,1757625044339,-480.0,0.00014894,2]
[384906787,1757625044348,-480.0,0.00014894,2]
[384906789,1757625044358,-687.45,0.00014894,2]
[384906791,1757625044367,-480.0,0.00014894,2]
[384906793,1757625044376,-480.0,0.00014894,2]
[384906795,1757625044385,-480.0,0.00014894,2]
[384906797,1757625044394,-480.0,0.00014894,2]
[384906799,1757625044403,-3326.37,0.00014894,2]
[384906801,1757625044412,-480.0,0.00014894,2]
[384906803,1757625044421,-480.0,0.00014894,2]
[384906805,1757625044431,-480.0,0.00014894,2]
[384906807,1757625044440,-480.0,0.00014894,2]
[384906809,1757625044449,-412.46999999,0.00014894,2]
[384906811,1757625044459,-480.0,0.00014894,2]
[384906813,1757625044467,-937.75,0.00014894,2]
[384906815,1757625044476,-480.0,0.00014894,2]
[384906817,1757625044485,-480.0,0.00014894,2]
[384906818,1757625044495,-1157.92,0.00014894,2]
[384906820,1757625044504,-480.0,0.00014894,2]
[384906822,1757625044513,-480.0,0.00014894,2]
[384906824,1757625044522,-480.0,0.00014894,2]
[384906826,1757625044531,-480.0,0.00014894,2]
[384906828,1757625044540,-490.91,0.00014894,2]
[384906829,1757625044549,-979.73,0.00014894,2]
[384906830,1757625044559,-480.0,0.00014894,2]
[384906831,1757625044567,-8625.72,0.00014894,2]
[384906832,1757625044577,-260.7255712,0.00014894,2]
[384906833,1757625044586,-480.0,0.00014894,2]
[384906834,1757625044596,-480.0,0.00014894,2]
[384906835,1757625044605,-480.0,0.00014894,2]
[384906836,1757625044614,-480.0,0.00014894,2]
[384906837,1757625044624,-500.76948217,0.00014951,2]
[384906838,1757625044634,-1000.0,0.00014987,2]
[384906839,1757625044643,-1000.0,0.00014987,2]
[384906840,1757625044652,-1000.0,0.00014987,2]
[384906841,1757625044662,-1000.0,0.00014989,2]
[384906842,1757625044671,-486.74,0.00014994,2]
[384906843,1757625044680,-480.0,0.00014994,2]
[384906844,1757625044689,-538.62,0.00014994,2]
[384906845,1757625044699,-644.27,0.00014994,2]
[384906846,1757625044708,-480.0,0.00014994,2]
[384906847,1757625044717,-597.52,0.00014994,2]
[384906848,1757625044727,-480.0,0.00014994,2]
[384906849,1757625044735,-160.0,0.00015,2]
[384906850,1757625044744,-181.998117,0.00015068,2]
[384906851,1757625044753,-500.0,0.00015068,2]
[384906853,1757625044763,-370.1,0.00015093,2]
[384906855,1757625044772,-480.0,0.00015093,2]
[384906857,1757625044781,-420.0,0.00015117,2]
[384906859,1757625044791,-1000.0,0.0001514,2]
[384906861,1757625044800,-2241.53,0.00015167,2]
[384906863,1757625044809,-865.88,0.00015167,2]
[384906864,1757625044818,-480.0,0.00015167,2]
[384906867,1757625044827,-480.0,0.00015167,2]
[384906869,1757625044838,-480.0,0.00015167,2]
[384906871,1757625044847,-315.93788564,0.00015167,2]
[384906873,1757625044856,-658.19,0.00015167,2]
[384906874,1757625044866,-1031.8,0.00015167,2]
[384906876,1757625044875,-928.67,0.00015167,2]
[384906878,1757625044885,-480.0,0.00015167,2]
[384906880,1757625044894,-480.0,0.00015167,2]
[384906882,1757625044904,-480.0,0.00015167,2]
[384906884,1757625044914,-480.0,0.00015167,2]
[384906886,1757625044924,-480.0,0.00015167,2]
[384906888,1757625044933,-924.32,0.00015167,2]
[384906890,1757625044943,-480.0,0.00015167,2]
[384906892,1757625044952,-1704.95,0.00015167,2]
[384906894,1757625044961,-480.0,0.00015167,2]
[384906896,1757625044971,-480.0,0.00015167,2]
[384906898,1757625044982,-287.86390906,0.00015167,2]
[384906900,1757625044992,-480.0,0.00015168,2]
[384906902,1757625045001,-687.45,0.00015168,2]
[384906904,1757625045010,-480.0,0.00015168,2]
[384906906,1757625045020,-480.0,0.00015168,2]
[384906908,1757625045029,-480.0,0.00015168,2]
[384906910,1757625045039,-480.0,0.00015168,2]
[384906912,1757625045048,-3326.37,0.00015168,2]
[384906914,1757625045058,-480.0,0.00015168,2]
[384906916,1757625045068,-480.0,0.00015168,2]
[384906918,1757625045077,-480.0,0.00015168,2]
[384906920,1757625045086,-480.0,0.00015168,2]
[384906922,1757625045096,-480.0,0.00015168,2]
[384906924,1757625045107,-937.75,0.00015168,2]
[384906926,1757625045117,-480.0,0.00015168,2]
[384906928,1757625045126,-480.0,0.00015168,2]
[384906930,1757625045135,-1157.92,0.00015168,2]
[384906932,1757625045145,-480.0,0.00015168,2]
[384906934,1757625045155,-480.0,0.00015168,2]
[384906936,1757625045164,-480.0,0.00015168,2]
[384906938,1757625045174,-480.0,0.00015168,2]
[384906940,1757625045184,-490.91,0.00015168,2]
[384906943,1757625045193,-979.73,0.00015168,2]
[384906944,1757625045202,-480.0,0.00015168,2]
[384906946,1757625045211,-8625.72,0.00015168,2]
[384906948,1757625045220,-480.0,0.00015168,2]
[384906950,1757625045230,-480.0,0.00015168,2]
[384906952,1757625045239,-480.0,0.00015168,2]
[384906954,1757625045249,-480.0,0.00015168,2]
[384906956,1757625045258,-1003.47571602,0.00015171,2]
[384906958,1757625045269,-497.74588806,0.00015171,2]
[384906960,1757625045278,-486.74,0.00015268,2]
[384906962,1757625045288,-480.0,0.00015268,2]
[384906964,1757625045298,-538.62,0.00015268,2]
[384906968,1757625045307,-644.27,0.00015268,2]